Body,Body Name,Date,TransNo,Amount � (Excl VAT),Supplier name,Description,Expense Area,Expense Type,Expense Code,
http://opendatacommunities.org/id/london-borough-council/sutton,London Borough of Sutton,20/09/2020,1303786,45.91 , W M MORRISONS.COM,GROCERIES,Health and Wellbeing Directorate,Provisions - General,F150,
http://opendatacommunities.org/id/london-borough-council/sutton,London Borough of Sutton,15/09/2020,1303786,133.30 , AMZNMKTPLACE,THERMOMETERS,Health and Wellbeing Directorate,Provisions - General,F150,
http://opendatacommunities.org/id/london-borough-council/sutton,London Borough of Sutton,14/09/2020,1303786,31.45 , SAINSBURYS 2006,GROCERIES,Health and Wellbeing Directorate,Provisions - General,F150,
http://opendatacommunities.org/id/london-borough-council/sutton,London Borough of Sutton,07/09/2020,1303786,22.94 , ASDA SUPERSTORE,GROCERIES,Health and Wellbeing Directorate,Provisions - General,F150,
http://opendatacommunities.org/id/london-borough-council/sutton,London Borough of Sutton,04/09/2020,1303786,(1.35), W M MORRISONS.COM,GROCERY REFUND,Health and Wellbeing Directorate,Provisions - General,F150,
http://opendatacommunities.org/id/london-borough-council/sutton,London Borough of Sutton,03/09/2020,1303786,4.80 , SAINSBURYS SACAT 2331,GROCERIES,Health and Wellbeing Directorate,Provisions - General,F150,
http://opendatacommunities.org/id/london-borough-council/sutton,London Borough of Sutton,01/09/2020,1303786,98.30 , AMZNMKTPLACE,FIRST AID SUPPLIES,Health and Wellbeing Directorate,Postages - General,F350,
http://opendatacommunities.org/id/london-borough-council/sutton,London Borough of Sutton,23/09/2020,1303786,1.25 , ANNA PHARMACY,PARACETAMOL FOR EU,Peoples Services Directorate,Other Services,F340,
http://opendatacommunities.org/id/london-borough-council/sutton,London Borough of Sutton,23/09/2020,1303786,1.25 , ANNA PHARMACY,PARACETAMOL FOR EU,Peoples Services Directorate,Other Services,F340,
http://opendatacommunities.org/id/london-borough-council/sutton,London Borough of Sutton,22/09/2020,1303786,57.28 , TESCO STORE 3235,WEEKLY SHOP AND HOUSEHOLD ITEMS EU,Peoples Services Directorate,Other Services,F340,
http://opendatacommunities.org/id/london-borough-council/sutton,London Borough of Sutton,18/09/2020,1303786,8.06 , MCDONALDS911,DINNER WITH EU,Peoples Services Directorate,Other Services,F340,
http://opendatacommunities.org/id/london-borough-council/sutton,London Borough of Sutton,18/09/2020,1303786,5.00 , SQ  ROSEHILL CARS LTD,CAB FROM HOSPITAL EU,Peoples Services Directorate,Other Services,F340,
http://opendatacommunities.org/id/london-borough-council/sutton,London Borough of Sutton,18/09/2020,1303786,5.00 , SQ  ROSEHILL CARS LTD,CAB TO HOSPITAL EU,Peoples Services Directorate,Other Services,F340,
http://opendatacommunities.org/id/london-borough-council/sutton,London Borough of Sutton,07/09/2020,1303786,6.93 , UBER    TRIP,UBER TO DOCTORS SURGERY EU,Peoples Services Directorate,Other Services,F340,
http://opendatacommunities.org/id/london-borough-council/sutton,London Borough of Sutton,07/09/2020,1303786,49.97 , WWW.NIKESTORE.COM,SCHOOL SHOES EU,Peoples Services Directorate,Other Services,F340,
http://opendatacommunities.org/id/london-borough-council/sutton,London Borough of Sutton,07/09/2020,1303786,8.46 , UBER    TRIP,UBER FROM DOCTORS EU,Peoples Services Directorate,Other Services,F340,
http://opendatacommunities.org/id/london-borough-council/sutton,London Borough of Sutton,05/09/2020,1303786,10.13 , DELIVEROO.CO.UK,WEEKLY TAKEAWAY EU,Peoples Services Directorate,Other Services,F340,
http://opendatacommunities.org/id/london-borough-council/sutton,London Borough of Sutton,05/09/2020,1303786,9.49 , UBER    EATS,WEEKLY TAKEAWAY EU,Peoples Services Directorate,Other Services,F340,
http://opendatacommunities.org/id/london-borough-council/sutton,London Borough of Sutton,03/09/2020,1303786,6.66 , AMAZON PRIME 6925M0YH5,INCORRECT PURCHASE AND WILL BE REFUNDED,Peoples Services Directorate,Other Services,F340,
http://opendatacommunities.org/id/london-borough-council/sutton,London Borough of Sutton,02/09/2020,1303786,3.87 , TESCO STORES 5470,HOUSEHOLD ITEMS,Peoples Services Directorate,Other Services,F340,
http://opendatacommunities.org/id/london-borough-council/sutton,London Borough of Sutton,01/09/2020,1303786,4.96 , SAINSBURYS 2331,HOUSEHOLD ITEMS,Peoples Services Directorate,Other Services,F340,
http://opendatacommunities.org/id/london-borough-council/sutton,London Borough of Sutton,01/09/2020,1303786,36.52 , SAINSBURYS 2331,WEEKLY SHOP EU,Peoples Services Directorate,Other Services,F340,
http://opendatacommunities.org/id/london-borough-council/sutton,London Borough of Sutton,01/09/2020,1303786,19.72 , AMZNMKTPLACE,HAVE FOLLOWED UP WITH AMAZON WHO CONFIRM NO ORDER AND WE SUSPECT FRAUDULENT PURCHASE. CE WILL FOLLOW UP WITH BANK ABOUT A CHARGE BACK TRANSACTION.,Peoples Services Directorate,Other Services,F340,
http://opendatacommunities.org/id/london-borough-council/sutton,London Borough of Sutton,01/09/2020,1303786,6.84 , WWW.NIKESTORE.COM,SCHOOL SOCKS EU,Peoples Services Directorate,Other Services,F340,
http://opendatacommunities.org/id/london-borough-council/sutton,London Borough of Sutton,30/08/2020,1303786,19.25 , SHEIN.COM,MONTHLY SHOPPING EU,Peoples Services Directorate,Other Services,F340,
http://opendatacommunities.org/id/london-borough-council/sutton,London Borough of Sutton,29/08/2020,1303786,10.31 , DELIVEROO.CO.UK,WEEKLY TAKEAWAY EU,Peoples Services Directorate,Other Services,F340,
http://opendatacommunities.org/id/london-borough-council/sutton,London Borough of Sutton,29/08/2020,1303786,31.62 , SHEIN.COM,MONTHLY SHOPPING EU,Peoples Services Directorate,Other Services,F340,
http://opendatacommunities.org/id/london-borough-council/sutton,London Borough of Sutton,29/08/2020,1303786,47.64 , SHEIN.COM,MONTHLY SHOPPING EU,Peoples Services Directorate,Other Services,F340,
http://opendatacommunities.org/id/london-borough-council/sutton,London Borough of Sutton,29/08/2020,1303786,10.31 , DELIVEROO.CO.UK,WEEKLY TAKEAWAY EU,Peoples Services Directorate,Other Services,F340,
http://opendatacommunities.org/id/london-borough-council/sutton,London Borough of Sutton,29/08/2020,1303786,23.33 , WWW.ASOS.COM,MONTHLY SHOPPING EU,Peoples Services Directorate,Other Services,F340,
http://opendatacommunities.org/id/london-borough-council/sutton,London Borough of Sutton,27/08/2020,1303786,800.00 , OFSTED INTERNET,OFSTEAD REGISTRATION PAYMENT FOR THORNTON ROAD,Peoples Services Directorate,Other Services,F340,
http://opendatacommunities.org/id/london-borough-council/sutton,London Borough of Sutton,26/08/2020,1303786,1.24 , BUDGENS,PARACETAMOL EU,Peoples Services Directorate,Other Services,F340,
http://opendatacommunities.org/id/london-borough-council/sutton,London Borough of Sutton,26/08/2020,1303786,2.50 , BUDGENS,DRINKS EU,Peoples Services Directorate,Other Services,F340,
http://opendatacommunities.org/id/london-borough-council/sutton,London Borough of Sutton,02/09/2020,1303786,116.10 , AMZNMKTPLACE AMAZON.CO,020920 GLA BID MICROPHONE CLIPS X 10 FROM AMAZON,Peoples Services Directorate,Non Government Grants,P106,
http://opendatacommunities.org/id/london-borough-council/sutton,London Borough of Sutton,02/09/2020,1303786,190.00 , AMZNMKTPLACE,030920 GLA BID AMAZON LIGHT RINGS X 10,Peoples Services Directorate,Non Government Grants,P106,
http://opendatacommunities.org/id/london-borough-council/sutton,London Borough of Sutton,02/09/2020,1303786,161.90 , AMZNMKTPLACE AMAZON.CO,GLA BID STRAND 2 EQUIPMENT 10 X TRIPODS FROM AMAZON,Peoples Services Directorate,Non Government Grants,P106,
http://opendatacommunities.org/id/london-borough-council/sutton,London Borough of Sutton,17/09/2020,1303786,2.57 , HOO HOOTSUITE INC,160920 HOOTSUITE SUBS EXCHANGE FEE,Peoples Services Directorate,Advertising/Publicity (non Staff),F240,
http://opendatacommunities.org/id/london-borough-council/sutton,London Borough of Sutton,16/09/2020,1303786,93.54 , HOO HOOTSUITE INC,160920 HOOTSUITE SUBS $119.88USD,Peoples Services Directorate,Advertising/Publicity (non Staff),F240,
http://opendatacommunities.org/id/london-borough-council/sutton,London Borough of Sutton,12/09/2020,1303786,500.00 , FACEBK H48N6UW6A2,120920 SOCIAL MEDIA AD 2021 PROMO VIA FB 500.00,Peoples Services Directorate,Advertising/Publicity (non Staff),F240,
http://opendatacommunities.org/id/london-borough-council/sutton,London Borough of Sutton,11/09/2020,1303786,500.00 , FACEBK M9V36UW6A2,110920 SOCIAL MEDIA AD VIA FB 2021 PROMO 500.00,Peoples Services Directorate,Advertising/Publicity (non Staff),F240,
http://opendatacommunities.org/id/london-borough-council/sutton,London Borough of Sutton,11/09/2020,1303786,500.00 , FACEBK GUCSDUA6A2,100920 SOCIAL MEDIA AD VIA FB 2021 PROMO 500.00,Peoples Services Directorate,Advertising/Publicity (non Staff),F240,
http://opendatacommunities.org/id/london-borough-council/sutton,London Borough of Sutton,30/08/2020,1303786,79.48 , MAILCHIMP,300820 MAILCHIMP SUBS 79.48,Peoples Services Directorate,Advertising/Publicity (non Staff),F240,
http://opendatacommunities.org/id/london-borough-council/sutton,London Borough of Sutton,27/08/2020,1303786,187.42 , AMZNMKTPLACE AMAZON.CO,10 X 50 LITRE RECYCLING BINS,Peoples Services Directorate,Health and Safety Equipment,F005,
http://opendatacommunities.org/id/london-borough-council/sutton,London Borough of Sutton,27/08/2020,1303786,44.97 , AMZNMKTPLACE AMAZON.CO,2 X 15 PIECES OF ONE WAY FLOOR STICKERS SIGN DIRECTIONAL ARROWS,Peoples Services Directorate,Health and Safety Equipment,F005,
http://opendatacommunities.org/id/london-borough-council/sutton,London Borough of Sutton,26/08/2020,1303786,58.32 , AMZNMKTPLACE,SNEEZE GUARDS FOR COUNTER,Peoples Services Directorate,Health and Safety Equipment,F005,
http://opendatacommunities.org/id/london-borough-council/sutton,London Borough of Sutton,14/09/2020,1303786,275.90 , AMZNMKTPLACE,EXAM DESKS SO STUDENTS CAN SOCIALLY DISTANCE,Peoples Services Directorate,Education Equipment,F009,
http://opendatacommunities.org/id/london-borough-council/sutton,London Borough of Sutton,03/09/2020,1303786,224.92 , TABLETOP STUDIO LTD,LIGHT TENT CUBES X 2,Peoples Services Directorate,Education Equipment,F009,
http://opendatacommunities.org/id/london-borough-council/sutton,London Borough of Sutton,27/08/2020,1303786,326.67 , WWW.INSTANTPRINT.C,COVID SAFETY SIGNAGE,Peoples Services Directorate,Materials - General,F100,
http://opendatacommunities.org/id/london-borough-council/sutton,London Borough of Sutton,03/09/2020,1303786,131.40 , WWW.INSTANTPRINT.C,030920 INSTANTPRINT BRENDAN ART BOOKLET,Peoples Services Directorate,Advertising/Publicity (non Staff),F240,
http://opendatacommunities.org/id/london-borough-council/sutton,London Borough of Sutton,25/09/2020,1303786,10.63 , WM MORRISONS STORE,COOKERY INGREDIENTS,Peoples Services Directorate,Education Equipment,F009,
http://opendatacommunities.org/id/london-borough-council/sutton,London Borough of Sutton,23/09/2020,1303786,8.06 , ASDA STORES,COOKERY INGREDIENTS,Peoples Services Directorate,Education Equipment,F009,
http://opendatacommunities.org/id/london-borough-council/sutton,London Borough of Sutton,11/09/2020,1303786,50.00 , WALLINGTON COMPUTERS,MC PHONE,Peoples Services Directorate,Personal Requisites,F106,
http://opendatacommunities.org/id/london-borough-council/sutton,London Borough of Sutton,10/09/2020,1303786,9.03 , MCDONALDS911,MC ACTIVITY,Peoples Services Directorate,Personal Requisites,F106,
http://opendatacommunities.org/id/london-borough-council/sutton,London Borough of Sutton,09/09/2020,1303786,32.85 , PIZZA EXPRESS,RA BDAY,Peoples Services Directorate,Personal Requisites,F106,
http://opendatacommunities.org/id/london-borough-council/sutton,London Borough of Sutton,09/09/2020,1303786,19.83 , SAINSBURYS SACAT 2006,DR GROC,Peoples Services Directorate,Personal Requisites,F106,
http://opendatacommunities.org/id/london-borough-council/sutton,London Borough of Sutton,06/09/2020,1303786,62.79 , ESURE MOTOR,AH INS,Peoples Services Directorate,Personal Requisites,F106,
http://opendatacommunities.org/id/london-borough-council/sutton,London Borough of Sutton,04/09/2020,1303786,22.70 , WILKO RETAIL LIMITED,QUAD,Peoples Services Directorate,Personal Requisites,F106,
http://opendatacommunities.org/id/london-borough-council/sutton,London Borough of Sutton,04/09/2020,1303786,247.00 , CEX,DV,Peoples Services Directorate,Personal Requisites,F106,
http://opendatacommunities.org/id/london-borough-council/sutton,London Borough of Sutton,02/09/2020,1303786,100.00 , AMAZON.CO.UK DK4XL35T5,JD SET UP,Peoples Services Directorate,Personal Requisites,F106,
http://opendatacommunities.org/id/london-borough-council/sutton,London Borough of Sutton,22/09/2020,1303786,64.16 , EBAY O 10-05773-57356,76.99 F106 0304 9999 EBAY.PDF,Peoples Services Directorate,Personal Requisites,F106,
http://opendatacommunities.org/id/london-borough-council/sutton,London Borough of Sutton,22/09/2020,1303786,82.50 , IKEA LTD SHOP ONLINE,99.00 F106 0304 9999 IKEA.PDF,Peoples Services Directorate,Personal Requisites,F106,
http://opendatacommunities.org/id/london-borough-council/sutton,London Borough of Sutton,18/09/2020,1303786,564.12 , ARGOS LTD,676.95 F106 0304 9999 ARGOS,Peoples Services Directorate,Personal Requisites,F106,
http://opendatacommunities.org/id/london-borough-council/sutton,London Borough of Sutton,18/09/2020,1303786,83.33 , ARGOS LTD,100.00 F106 0304 9999 ARGOS,Peoples Services Directorate,Personal Requisites,F106,
http://opendatacommunities.org/id/london-borough-council/sutton,London Borough of Sutton,15/09/2020,1303786,149.99 , WF  WAYFAIR 3373591434,179.99 - F106 0304 9999 - WAYFAIR - MATTRESS -,Peoples Services Directorate,Personal Requisites,F106,
http://opendatacommunities.org/id/london-borough-council/sutton,London Borough of Sutton,09/09/2020,1303786,651.67 , SUTTON APPLIANCES,782.00 F106 0304 9999 SUTTON APPLIANCES,Peoples Services Directorate,Personal Requisites,F106,
http://opendatacommunities.org/id/london-borough-council/sutton,London Borough of Sutton,08/09/2020,1303786,339.12 , ARGOS LTD,406.95 F106 0304 9999 ARGOS,Peoples Services Directorate,Personal Requisites,F106,
http://opendatacommunities.org/id/london-borough-council/sutton,London Borough of Sutton,20/09/2020,1303786,25.00 , SAINSBURYS 2006,SH BDAY,Peoples Services Directorate,Personal Requisites,F106,
http://opendatacommunities.org/id/london-borough-council/sutton,London Borough of Sutton,19/09/2020,1303786,53.42 , LIDL GB LONDON,MC GROCERIES,Peoples Services Directorate,Personal Requisites,F106,
http://opendatacommunities.org/id/london-borough-council/sutton,London Borough of Sutton,18/09/2020,1303786,13.10 , PPOINT_ BOTTLE & BASKE,DR GROCERIES,Peoples Services Directorate,Personal Requisites,F106,
http://opendatacommunities.org/id/london-borough-council/sutton,London Borough of Sutton,17/09/2020,1303786,12.70 , PERFECT KEBABS,RA ACTIVITY,Peoples Services Directorate,Personal Requisites,F106,
http://opendatacommunities.org/id/london-borough-council/sutton,London Borough of Sutton,11/09/2020,1303786,4.22 , MCDONALDS 1311,MC ACT,Peoples Services Directorate,Personal Requisites,F106,
http://opendatacommunities.org/id/london-borough-council/sutton,London Borough of Sutton,11/09/2020,1303786,12.48 , PPOINT_ BOTTLE & BASKE,DR,Peoples Services Directorate,Personal Requisites,F106,
http://opendatacommunities.org/id/london-borough-council/sutton,London Borough of Sutton,17/09/2020,1303786,54.17 , HOTEL ON BOOKING.COM,65.00 - H202 0304 9999 - HOTEL BOOKING.COM,Peoples Services Directorate,Accommodation - Bed and Breakfast,H202,
http://opendatacommunities.org/id/london-borough-council/sutton,London Borough of Sutton,27/09/2020,1303786,3.99 , AMZNMKTPLACE,BALANCING ENTRY AMOUNT (9.34%),Peoples Services Directorate,Client Care/Assistance,H301,
http://opendatacommunities.org/id/london-borough-council/sutton,London Borough of Sutton,27/09/2020,1303786,15.99 , AMZNMKTPLACE,SPLIT - NEW MAMA SILVER NECKLACE IN GIFT PACKAGING | INSPIRATIONAL WORDS | NEW MUM GIFTS | KEEPSAKE FOR MUM TO BE | BABY SHOWER GIFTS FOR MUM | DESIGNED IN THE UK (37.41%),Peoples Services Directorate,Client Care/Assistance,H301,
http://opendatacommunities.org/id/london-borough-council/sutton,London Borough of Sutton,27/09/2020,1303786,2.54 , AMZNMKTPLACE,SPLIT - PARENTS TO BE CARD - BABY SHOWER CARD - PREGNANCY CARD (5.94%),Peoples Services Directorate,Client Care/Assistance,H301,
http://opendatacommunities.org/id/london-borough-council/sutton,London Borough of Sutton,27/09/2020,1303786,20.22 , AMZNMKTPLACE,"SPLIT - BEAUTIFUL BABY HANDPRINT KIT & FOOTPRINT PHOTO FRAME FOR NEWBORN GIRLS AND BOYS, UNIQUE BABY SHOWER GIFTS SET FOR REGISTRY, MEMORABLE KEEPSAKE BOX DECORATIONS FOR ROOM WALL OR NURSERY DECOR (47.31%)",Peoples Services Directorate,Client Care/Assistance,H301,
http://opendatacommunities.org/id/london-borough-council/sutton,London Borough of Sutton,03/09/2020,1303786,(33.32), ARGOS LTD,39.99 H336 0304 9999 ARGOS,Peoples Services Directorate,Set Up Costs - Children Leaving Care,H336,
http://opendatacommunities.org/id/london-borough-council/sutton,London Borough of Sutton,01/09/2020,1303786,125.00 , JD SPORTS INTERNET,150.00 H336 0304 9999 JD SPORTS,Peoples Services Directorate,Set Up Costs - Children Leaving Care,H336,
http://opendatacommunities.org/id/london-borough-council/sutton,London Borough of Sutton,01/09/2020,1303786,44.96 , ARGOS LTD,53.95 H336 0304 9999 ARGOS,Peoples Services Directorate,Set Up Costs - Children Leaving Care,H336,
http://opendatacommunities.org/id/london-borough-council/sutton,London Borough of Sutton,01/09/2020,1303786,58.33 , ARGOS LTD,70.00 H336 0304 9999 ARGOS,Peoples Services Directorate,Set Up Costs - Children Leaving Care,H336,
http://opendatacommunities.org/id/london-borough-council/sutton,London Borough of Sutton,28/08/2020,1303786,430.78 , ARGOS LTD,516.94 H336 0304 9999 ARGOS,Peoples Services Directorate,Set Up Costs - Children Leaving Care,H336,
http://opendatacommunities.org/id/london-borough-council/sutton,London Borough of Sutton,26/08/2020,1303786,(108.95), IKEA LTD SHOP ONLINE,refund of goods for client,Peoples Services Directorate,Set Up Costs - Children Leaving Care,H336,
http://opendatacommunities.org/id/london-borough-council/sutton,London Borough of Sutton,10/09/2020,1303786,40.00 , SAINSBURYS 2006,LC SET UP,Peoples Services Directorate,Set Up Costs - Children Leaving Care,H336,
http://opendatacommunities.org/id/london-borough-council/sutton,London Borough of Sutton,10/09/2020,1303786,80.00 , SAINSBURYS 2006,LC SET UP,Peoples Services Directorate,Set Up Costs - Children Leaving Care,H336,
http://opendatacommunities.org/id/london-borough-council/sutton,London Borough of Sutton,07/09/2020,1303786,5.83 , ARGOS LTD,DR SET UP,Peoples Services Directorate,Set Up Costs - Children Leaving Care,H336,
http://opendatacommunities.org/id/london-borough-council/sutton,London Borough of Sutton,01/09/2020,1303786,36.62 , ARGOS LTD,43.95 F106 0305 9999 ARGOS,Peoples Services Directorate,Personal Requisites,F106,
http://opendatacommunities.org/id/london-borough-council/sutton,London Borough of Sutton,28/08/2020,1303786,202.47 , ARGOS LTD,242.96 F106 0305 9999 ARGOS,Peoples Services Directorate,Personal Requisites,F106,
http://opendatacommunities.org/id/london-borough-council/sutton,London Borough of Sutton,01/09/2020,1303786,319.05 , WWW.COURIEREXPERT.CO.U,382.86 H301 0305 9999 COURIER EXPERT,Peoples Services Directorate,Client Care/Assistance,H301,
http://opendatacommunities.org/id/london-borough-council/sutton,London Borough of Sutton,14/09/2020,1303786,132.50 , CURRYS ONLINE,159.00 H336 0305 9999- CURRY,Peoples Services Directorate,Set Up Costs - Children Leaving Care,H336,
http://opendatacommunities.org/id/london-borough-council/sutton,London Borough of Sutton,26/08/2020,1303786,132.50 , CURRYS ONLINE,159.00 H336 0305 9999 CURRY,Peoples Services Directorate,Set Up Costs - Children Leaving Care,H336,
http://opendatacommunities.org/id/london-borough-council/sutton,London Borough of Sutton,24/09/2020,1303786,169.99 , WF  WAYFAIR 3417957844,203.99 F106 0306 9999 WAYFAIR.PDF,Peoples Services Directorate,Personal Requisites,F106,
http://opendatacommunities.org/id/london-borough-council/sutton,London Borough of Sutton,24/09/2020,1303786,75.00 , ARGOS LTD,90.00 - F106 0306 9999 ARGOS .PNG,Peoples Services Directorate,Personal Requisites,F106,
http://opendatacommunities.org/id/london-borough-council/sutton,London Borough of Sutton,24/09/2020,1303786,359.12 , ARGOS LTD,430.95 - F106 0306 9999 ARGOS .PNG,Peoples Services Directorate,Personal Requisites,F106,
http://opendatacommunities.org/id/london-borough-council/sutton,London Borough of Sutton,17/09/2020,1303786,289.98 , WF  WAYFAIR 3417075054,347.98 - H301 0306 9999 - WAYFAIR,Peoples Services Directorate,Client Care/Assistance,H301,
http://opendatacommunities.org/id/london-borough-council/sutton,London Borough of Sutton,03/09/2020,1303786,20.83 , OYSTER ONLINE,25.00 - A530 0310 9999 - NEW RAS OYSTER CARD (1).PDF,Peoples Services Directorate,Travelling and Subsistence Allowances,A530,
http://opendatacommunities.org/id/london-borough-council/sutton,London Borough of Sutton,03/09/2020,1303786,20.83 , OYSTER ONLINE,25.00 - A530 0310 9999 - NEW RAS OYSTER CARD (2).PDF,Peoples Services Directorate,Travelling and Subsistence Allowances,A530,
http://opendatacommunities.org/id/london-borough-council/sutton,London Borough of Sutton,26/08/2020,1303786,16.67 , OYSTER BUS AUTOLOAD,20.00 A530 0310 9999 - 26.08.2020.PDF,Peoples Services Directorate,Travelling and Subsistence Allowances,A530,
http://opendatacommunities.org/id/london-borough-council/sutton,London Borough of Sutton,11/09/2020,1303786,45.82 , MICROSOFT STORE,54.99 - F106 0310 9999 - UAG SURFACE PRO CASE MICROSOFT,Peoples Services Directorate,Personal Requisites,F106,
http://opendatacommunities.org/id/london-borough-council/sutton,London Borough of Sutton,26/08/2020,1303786,29.73 , TRAVELODGE,35.68 H202 0310 9999 TRAVELODGE.PDF,Peoples Services Directorate,Accommodation - Bed and Breakfast,H202,
http://opendatacommunities.org/id/london-borough-council/sutton,London Borough of Sutton,29/08/2020,1303786,16.67 , OYSTER BUS AUTOLOAD,20.00 - A530 0311 9999 - 29.08.2020.PDF,Peoples Services Directorate,Travelling and Subsistence Allowances,A530,
http://opendatacommunities.org/id/london-borough-council/sutton,London Borough of Sutton,23/09/2020,1303786,8.33 , TFL OYST PHOTOCARD,10.00 - F106 0311 9999 - 11 TO 15 OYSTER CARD RENEWAL.PDF,Peoples Services Directorate,Personal Requisites,F106,
http://opendatacommunities.org/id/london-borough-council/sutton,London Borough of Sutton,15/09/2020,1303786,3.33 , THE WORKS,4.00 F106 0311 9999 THE WORKS.PDF,Peoples Services Directorate,Personal Requisites,F106,
http://opendatacommunities.org/id/london-borough-council/sutton,London Borough of Sutton,16/09/2020,1303786,35.00 , THORPE PARK,42.00 - F106 0311 9999 - THORPE PARK,Peoples Services Directorate,Personal Requisites,F106,
http://opendatacommunities.org/id/london-borough-council/sutton,London Borough of Sutton,16/09/2020,1303786,29.17 , HTTPS://KENTLIFE.MERLI,35 - F106 0311 9999 - KENTLIFE,Peoples Services Directorate,Personal Requisites,F106,
http://opendatacommunities.org/id/london-borough-council/sutton,London Borough of Sutton,09/09/2020,1303786,30.00 , GEN REGISTER OFFICE,36.00 F106 0311 9999 GRO BIRTH CERTIFICATE,Peoples Services Directorate,Personal Requisites,F106,
http://opendatacommunities.org/id/london-borough-council/sutton,London Borough of Sutton,09/09/2020,1303786,30.00 , GEN REGISTER OFFICE,36.00 F106 0311 9999 GRO BIRTH CERTIFICATE,Peoples Services Directorate,Personal Requisites,F106,
http://opendatacommunities.org/id/london-borough-council/sutton,London Borough of Sutton,09/09/2020,1303786,30.00 , GEN REGISTER OFFICE,36.00 F106 0311 9999 GRO BIRTH CERTIFICATE,Peoples Services Directorate,Personal Requisites,F106,
http://opendatacommunities.org/id/london-borough-council/sutton,London Borough of Sutton,02/09/2020,1303786,14.61 , AMAZON.CO.UK OX3QK3755,SPLIT - LIFE STORY WORK WITH CHILDREN WHO ARE FOSTERED OR ADOPTED: CREATIVE IDEAS AND ACTIVITIES (100%),Peoples Services Directorate,Personal Requisites,F106,
http://opendatacommunities.org/id/london-borough-council/sutton,London Borough of Sutton,10/09/2020,1303786,391.67 , SUTTON ORTHODONTICS,470.00 H301 0311 9999 SUTTON ORTHODONTICS,Peoples Services Directorate,Client Care/Assistance,H301,
http://opendatacommunities.org/id/london-borough-council/sutton,London Borough of Sutton,27/08/2020,1303786,(50.00), WWW.KENT.GOV.UK,REFUND,Peoples Services Directorate,Client Care/Assistance,H301,
http://opendatacommunities.org/id/london-borough-council/sutton,London Borough of Sutton,26/09/2020,1303786,16.67 , OYSTER AUTO TOPUP,20.00 - A530 0312 9999 - 26.09.2020.PDF,Peoples Services Directorate,Travelling and Subsistence Allowances,A530,
http://opendatacommunities.org/id/london-borough-council/sutton,London Borough of Sutton,18/09/2020,1303786,16.67 , OYSTER BUS AUTOLOAD,20.00 - A530 0312 9999 - 18.09.2020.PDF,Peoples Services Directorate,Travelling and Subsistence Allowances,A530,
http://opendatacommunities.org/id/london-borough-council/sutton,London Borough of Sutton,10/09/2020,1303786,16.67 , OYSTER BUS AUTOLOAD,20.00 - A530 0312 9999 - 10.09.2020.PDF,Peoples Services Directorate,Travelling and Subsistence Allowances,A530,
http://opendatacommunities.org/id/london-borough-council/sutton,London Borough of Sutton,27/08/2020,1303786,16.67 , OYSTER BUS AUTOLOAD,20.00 A530 0312 9999 - 27.08.2020.PDF,Peoples Services Directorate,Travelling and Subsistence Allowances,A530,
http://opendatacommunities.org/id/london-borough-council/sutton,London Borough of Sutton,27/08/2020,1303786,27.50 , LBSUTTON,33.00 F106 0312 9999 BIRTH CERTIFICATE,Peoples Services Directorate,Personal Requisites,F106,
http://opendatacommunities.org/id/london-borough-council/sutton,London Borough of Sutton,26/08/2020,1303786,27.50 , SURREY CC CARD PAY,33.00 F106 0312 9999 BIRTH CERTIFICATE,Peoples Services Directorate,Personal Requisites,F106,
http://opendatacommunities.org/id/london-borough-council/sutton,London Borough of Sutton,07/09/2020,1303786,117.83 , HOTEL ON BOOKING.COM,141.40 H202 0312 9999 ST KILDA HOTEL,Peoples Services Directorate,Accommodation - Bed and Breakfast,H202,
http://opendatacommunities.org/id/london-borough-council/sutton,London Borough of Sutton,21/09/2020,1303786,102.48 , TRAVELODGE,122.98 - H202 0312 9999 - TRAVELODGE HOTEL.PDF,Peoples Services Directorate,Accommodation - Bed and Breakfast,H202,
http://opendatacommunities.org/id/london-borough-council/sutton,London Borough of Sutton,21/09/2020,1303786,125.00 , HOTEL ON BOOKING.COM,150.00 - H202 0312 9999 - ST KILDA HOTEL .PNG,Peoples Services Directorate,Accommodation - Bed and Breakfast,H202,
http://opendatacommunities.org/id/london-borough-council/sutton,London Borough of Sutton,07/09/2020,1303786,108.33 , WALLINGTON CARS AND CO,130.00 H212 0312 9999 WALLINGTON CARS,Peoples Services Directorate,C.C.A Travel & Subsistance,H212,
http://opendatacommunities.org/id/london-borough-council/sutton,London Borough of Sutton,27/08/2020,1303786,49.92 , ALPHA TAXIS,59.90 H212 0312 9999 ALPHA TAXIS,Peoples Services Directorate,C.C.A Travel & Subsistance,H212,
http://opendatacommunities.org/id/london-borough-council/sutton,London Borough of Sutton,26/08/2020,1303786,125.00 , ST KILDA HOTEL,150.00 H212 0312 9999 ST KILDA,Peoples Services Directorate,C.C.A Travel & Subsistance,H212,
http://opendatacommunities.org/id/london-borough-council/sutton,London Borough of Sutton,18/09/2020,1303786,16.67 , OYSTER AUTO TOPUP,20.00 - A530 0318 9999 - 18.09.2020.PDF,Peoples Services Directorate,Travelling and Subsistence Allowances,A530,
http://opendatacommunities.org/id/london-borough-council/sutton,London Borough of Sutton,29/08/2020,1303786,16.67 , OYSTER AUTO TOPUP,20.00 - A530 0318 9999 - 29.08.2020.PDF,Peoples Services Directorate,Travelling and Subsistence Allowances,A530,
http://opendatacommunities.org/id/london-borough-council/sutton,London Borough of Sutton,27/08/2020,1303786,33.33 , TFL AUTOSETTLEMENT,40.00 A530 0318 9999 - 27.08.2020.PDF,Peoples Services Directorate,Travelling and Subsistence Allowances,A530,
http://opendatacommunities.org/id/london-borough-council/sutton,London Borough of Sutton,27/08/2020,1303786,16.67 , OYSTER BUS AUTOLOAD,20.00 A530 0318 9999 - 27.08.2020.PDF,Peoples Services Directorate,Travelling and Subsistence Allowances,A530,
http://opendatacommunities.org/id/london-borough-council/sutton,London Borough of Sutton,12/09/2020,1303786,16.67 , OYSTER BUS AUTOLOAD,20.00 - A530 0320 9999 - 12.09.2020.PDF,Peoples Services Directorate,Travelling and Subsistence Allowances,A530,
http://opendatacommunities.org/id/london-borough-council/sutton,London Borough of Sutton,25/09/2020,1303786,92.77 , GOOGLE  ADS5058737870,SPLIT - FOSTERING CAMPAIGN AD (100%),Peoples Services Directorate,Fees - Other,F299,
http://opendatacommunities.org/id/london-borough-council/sutton,London Borough of Sutton,14/09/2020,1303786,242.00 , FACEBK AHNQKWSAL2,SPLIT - SOCIAL MEDIA ADVERTISING (80.41%),Peoples Services Directorate,Advertising/Publicity (non Staff),F240,
http://opendatacommunities.org/id/london-borough-council/sutton,London Borough of Sutton,25/09/2020,1303786,16.67 , OYSTER AUTO TOPUP,20.00 - A530 0359 9999 - 25.09.2020.PDF,Peoples Services Directorate,Travelling and Subsistence Allowances,A530,
http://opendatacommunities.org/id/london-borough-council/sutton,London Borough of Sutton,13/09/2020,1303786,16.67 , OYSTER AUTO TOPUP,20.00 - A530 0359 9999 - 13.09.2020.PDF,Peoples Services Directorate,Travelling and Subsistence Allowances,A530,
http://opendatacommunities.org/id/london-borough-council/sutton,London Borough of Sutton,12/09/2020,1303786,16.67 , OYSTER AUTO TOPUP,20.00 - A530 0359 9999 - 12.09.2020.PDF,Peoples Services Directorate,Travelling and Subsistence Allowances,A530,
http://opendatacommunities.org/id/london-borough-council/sutton,London Borough of Sutton,05/09/2020,1303786,16.67 , OYSTER AUTO TOPUP,20.00 - A530 0359 9999 - 05.09.2020.PDF,Peoples Services Directorate,Travelling and Subsistence Allowances,A530,
http://opendatacommunities.org/id/london-borough-council/sutton,London Borough of Sutton,04/09/2020,1303786,16.67 , OYSTER BUS AUTOLOAD,20.00 - A530 0359 9999 - 04.09.2020.PDF,Peoples Services Directorate,Travelling and Subsistence Allowances,A530,
http://opendatacommunities.org/id/london-borough-council/sutton,London Borough of Sutton,30/08/2020,1303786,16.67 , OYSTER BUS AUTOLOAD,20.00 - A530 0359 9999 - 30.08.2020.PDF,Peoples Services Directorate,Travelling and Subsistence Allowances,A530,
http://opendatacommunities.org/id/london-borough-council/sutton,London Borough of Sutton,13/09/2020,1303786,11.99 , ZOOM.GBP,ZOOM SUBSCRIPTION FOR CHILDREN IN CARE COUNCIL,Peoples Services Directorate,LAC - Education,F269,
http://opendatacommunities.org/id/london-borough-council/sutton,London Borough of Sutton,23/09/2020,1303786,325.00 , KNOWLEDGE EXCHANGE GRO,390.00 - A520 0366 0655 - KNOWLEDGE EXCHANGE GRO.PNG,Peoples Services Directorate,Training - Course Fees,A520,
http://opendatacommunities.org/id/london-borough-council/sutton,London Borough of Sutton,18/09/2020,1303786,65.83 , PREMIER INN,79.00- H202 0371 9999 - PREMIER INN SUTTON,Peoples Services Directorate,Accommodation - Bed and Breakfast,H202,
http://opendatacommunities.org/id/london-borough-council/sutton,London Borough of Sutton,18/09/2020,1303786,131.67 , PREMIER INN,158.00 - H202 0371 9999 - PREMIER INN SUTTON,Peoples Services Directorate,Accommodation - Bed and Breakfast,H202,
http://opendatacommunities.org/id/london-borough-council/sutton,London Borough of Sutton,15/09/2020,1303786,197.50 , PREMIER INN,237.00 - H202 0371 9999 - PREMIER INN SUTTON,Peoples Services Directorate,Accommodation - Bed and Breakfast,H202,
http://opendatacommunities.org/id/london-borough-council/sutton,London Borough of Sutton,09/09/2020,1303786,329.17 , PREMIER INN,395.00 H202 0371 9999 PREMIER INN,Peoples Services Directorate,Accommodation - Bed and Breakfast,H202,
http://opendatacommunities.org/id/london-borough-council/sutton,London Borough of Sutton,02/09/2020,1303786,188.33 , PREMIER INN,226.00 H202 0371 9999 PREMIER INN,Peoples Services Directorate,Accommodation - Bed and Breakfast,H202,
http://opendatacommunities.org/id/london-borough-council/sutton,London Borough of Sutton,04/09/2020,1303786,455.83 , PREMIER INN,547.00 H212 0371 9999 PREMIER INN,Peoples Services Directorate,C.C.A Travel & Subsistance,H212,
http://opendatacommunities.org/id/london-borough-council/sutton,London Borough of Sutton,24/09/2020,1303786,16.67 , OYSTER BUS AUTOLOAD,20.00 - A530 0383 9999 - 24.09.2020.PDF,Peoples Services Directorate,Travelling and Subsistence Allowances,A530,
http://opendatacommunities.org/id/london-borough-council/sutton,London Borough of Sutton,13/09/2020,1303786,16.67 , OYSTER BUS AUTOLOAD,20.00 - A530 0383 9999 - 13.09.2020.PDF,Peoples Services Directorate,Travelling and Subsistence Allowances,A530,
http://opendatacommunities.org/id/london-borough-council/sutton,London Borough of Sutton,28/08/2020,1303786,16.67 , OYSTER BUS AUTOLOAD,20.00 - A530 0383 9999 - 28.08.2020.PDF,Peoples Services Directorate,Travelling and Subsistence Allowances,A530,
http://opendatacommunities.org/id/london-borough-council/sutton,London Borough of Sutton,27/09/2020,1303786,16.67 , OYSTER BUS AUTOLOAD,20.00 - A530 0383 9999 - 27.09.2020.PDF,Peoples Services Directorate,Travelling and Subsistence Allowances,A530,
http://opendatacommunities.org/id/london-borough-council/sutton,London Borough of Sutton,25/09/2020,1303786,6.04 , GEN REGISTER OFFICE,7.25 - F106 0383 9999 - GRO .PNG,Peoples Services Directorate,Personal Requisites,F106,
http://opendatacommunities.org/id/london-borough-council/sutton,London Borough of Sutton,24/09/2020,1303786,10.00 , AMAZON.CO.UK XD7YP97C5,SPLIT - AMAZON LOGO SQUID - AMAZON.CO.UK EGIFT VOUCHER (4.76%),Peoples Services Directorate,LAC - Education,F269,
http://opendatacommunities.org/id/london-borough-council/sutton,London Borough of Sutton,24/09/2020,1303786,10.00 , AMAZON.CO.UK XD7YP97C5,SPLIT - A FOR AMAZON - AMAZON.CO.UK EGIFT VOUCHER (4.76%),Peoples Services Directorate,LAC - Education,F269,
http://opendatacommunities.org/id/london-borough-council/sutton,London Borough of Sutton,24/09/2020,1303786,10.00 , AMAZON.CO.UK XD7YP97C5,SPLIT - A FOR AMAZON - AMAZON.CO.UK EGIFT VOUCHER (4.76%),Peoples Services Directorate,LAC - Education,F269,
http://opendatacommunities.org/id/london-borough-council/sutton,London Borough of Sutton,24/09/2020,1303786,10.00 , AMAZON.CO.UK XD7YP97C5,SPLIT - A FOR AMAZON - AMAZON.CO.UK EGIFT VOUCHER (4.76%),Peoples Services Directorate,LAC - Education,F269,
http://opendatacommunities.org/id/london-borough-council/sutton,London Borough of Sutton,24/09/2020,1303786,10.00 , AMAZON.CO.UK XD7YP97C5,SPLIT - A FOR AMAZON - AMAZON.CO.UK EGIFT VOUCHER (4.76%),Peoples Services Directorate,LAC - Education,F269,
http://opendatacommunities.org/id/london-borough-council/sutton,London Borough of Sutton,24/09/2020,1303786,10.00 , AMAZON.CO.UK XD7YP97C5,SPLIT - A FOR AMAZON - AMAZON.CO.UK EGIFT VOUCHER (4.76%),Peoples Services Directorate,LAC - Education,F269,
http://opendatacommunities.org/id/london-borough-council/sutton,London Borough of Sutton,24/09/2020,1303786,10.00 , AMAZON.CO.UK XD7YP97C5,SPLIT - A FOR AMAZON - AMAZON.CO.UK EGIFT VOUCHER (4.8%),Peoples Services Directorate,LAC - Education,F269,
http://opendatacommunities.org/id/london-borough-council/sutton,London Borough of Sutton,23/09/2020,1303786,10.00 , AMAZON.CO.UK 3Q1O88QI5,SPLIT - A FOR AMAZON - AMAZON.CO.UK EGIFT VOUCHER (7.69%),Peoples Services Directorate,LAC - Education,F269,
http://opendatacommunities.org/id/london-borough-council/sutton,London Borough of Sutton,23/09/2020,1303786,10.00 , AMAZON.CO.UK 3Q1O88QI5,SPLIT - A FOR AMAZON - AMAZON.CO.UK EGIFT VOUCHER (7.69%),Peoples Services Directorate,LAC - Education,F269,
http://opendatacommunities.org/id/london-borough-council/sutton,London Borough of Sutton,23/09/2020,1303786,10.00 , AMAZON.CO.UK 3Q1O88QI5,SPLIT - A FOR AMAZON - AMAZON.CO.UK EGIFT VOUCHER (7.69%),Peoples Services Directorate,LAC - Education,F269,
http://opendatacommunities.org/id/london-borough-council/sutton,London Borough of Sutton,23/09/2020,1303786,10.00 , AMAZON.CO.UK 3Q1O88QI5,SPLIT - A FOR AMAZON - AMAZON.CO.UK EGIFT VOUCHER (7.69%),Peoples Services Directorate,LAC - Education,F269,
http://opendatacommunities.org/id/london-borough-council/sutton,London Borough of Sutton,23/09/2020,1303786,10.00 , AMAZON.CO.UK 3Q1O88QI5,SPLIT - A FOR AMAZON - AMAZON.CO.UK EGIFT VOUCHER (7.69%),Peoples Services Directorate,LAC - Education,F269,
http://opendatacommunities.org/id/london-borough-council/sutton,London Borough of Sutton,23/09/2020,1303786,10.00 , AMAZON.CO.UK 3Q1O88QI5,SPLIT - AMAZON LOGO SQUID - AMAZON.CO.UK EGIFT VOUCHER (7.69%),Peoples Services Directorate,LAC - Education,F269,
http://opendatacommunities.org/id/london-borough-council/sutton,London Borough of Sutton,23/09/2020,1303786,10.00 , AMAZON.CO.UK 3Q1O88QI5,SPLIT - A FOR AMAZON - AMAZON.CO.UK EGIFT VOUCHER (7.69%),Peoples Services Directorate,LAC - Education,F269,
http://opendatacommunities.org/id/london-borough-council/sutton,London Borough of Sutton,24/09/2020,1303786,10.00 , AMAZON.CO.UK XD7YP97C5,SPLIT - A FOR AMAZON - AMAZON.CO.UK EGIFT VOUCHER (4.76%),Peoples Services Directorate,LAC - Education,F269,
http://opendatacommunities.org/id/london-borough-council/sutton,London Borough of Sutton,24/09/2020,1303786,10.00 , AMAZON.CO.UK XD7YP97C5,SPLIT - A FOR AMAZON - AMAZON.CO.UK EGIFT VOUCHER (4.76%),Peoples Services Directorate,LAC - Education,F269,
http://opendatacommunities.org/id/london-borough-council/sutton,London Borough of Sutton,24/09/2020,1303786,10.00 , AMAZON.CO.UK XD7YP97C5,SPLIT - A FOR AMAZON - AMAZON.CO.UK EGIFT VOUCHER (4.76%),Peoples Services Directorate,LAC - Education,F269,
http://opendatacommunities.org/id/london-borough-council/sutton,London Borough of Sutton,24/09/2020,1303786,10.00 , AMAZON.CO.UK XD7YP97C5,SPLIT - A FOR AMAZON - AMAZON.CO.UK EGIFT VOUCHER (4.76%),Peoples Services Directorate,LAC - Education,F269,
http://opendatacommunities.org/id/london-borough-council/sutton,London Borough of Sutton,24/09/2020,1303786,10.00 , AMAZON.CO.UK XD7YP97C5,SPLIT - A FOR AMAZON - AMAZON.CO.UK EGIFT VOUCHER (4.76%),Peoples Services Directorate,LAC - Education,F269,
http://opendatacommunities.org/id/london-borough-council/sutton,London Borough of Sutton,24/09/2020,1303786,10.00 , AMAZON.CO.UK XD7YP97C5,SPLIT - A FOR AMAZON - AMAZON.CO.UK EGIFT VOUCHER (4.76%),Peoples Services Directorate,LAC - Education,F269,
http://opendatacommunities.org/id/london-borough-council/sutton,London Borough of Sutton,24/09/2020,1303786,10.00 , AMAZON.CO.UK XD7YP97C5,SPLIT - A FOR AMAZON - AMAZON.CO.UK EGIFT VOUCHER (4.76%),Peoples Services Directorate,LAC - Education,F269,
http://opendatacommunities.org/id/london-borough-council/sutton,London Borough of Sutton,24/09/2020,1303786,10.00 , AMAZON.CO.UK XD7YP97C5,SPLIT - A FOR AMAZON - AMAZON.CO.UK EGIFT VOUCHER (4.76%),Peoples Services Directorate,LAC - Education,F269,
http://opendatacommunities.org/id/london-borough-council/sutton,London Borough of Sutton,24/09/2020,1303786,10.00 , AMAZON.CO.UK XD7YP97C5,SPLIT - A FOR AMAZON - AMAZON.CO.UK EGIFT VOUCHER (4.76%),Peoples Services Directorate,LAC - Education,F269,
http://opendatacommunities.org/id/london-borough-council/sutton,London Borough of Sutton,24/09/2020,1303786,10.00 , AMAZON.CO.UK XD7YP97C5,SPLIT - A FOR AMAZON - AMAZON.CO.UK EGIFT VOUCHER (4.76%),Peoples Services Directorate,LAC - Education,F269,
http://opendatacommunities.org/id/london-borough-council/sutton,London Borough of Sutton,24/09/2020,1303786,10.00 , AMAZON.CO.UK XD7YP97C5,SPLIT - A FOR AMAZON - AMAZON.CO.UK EGIFT VOUCHER (4.76%),Peoples Services Directorate,LAC - Education,F269,
http://opendatacommunities.org/id/london-borough-council/sutton,London Borough of Sutton,24/09/2020,1303786,10.00 , AMAZON.CO.UK XD7YP97C5,SPLIT - A FOR AMAZON - AMAZON.CO.UK EGIFT VOUCHER (4.76%),Peoples Services Directorate,LAC - Education,F269,
http://opendatacommunities.org/id/london-borough-council/sutton,London Borough of Sutton,24/09/2020,1303786,10.00 , AMAZON.CO.UK XD7YP97C5,SPLIT - A FOR AMAZON - AMAZON.CO.UK EGIFT VOUCHER (4.76%),Peoples Services Directorate,LAC - Education,F269,
http://opendatacommunities.org/id/london-borough-council/sutton,London Borough of Sutton,24/09/2020,1303786,10.00 , AMAZON.CO.UK XD7YP97C5,SPLIT - A FOR AMAZON - AMAZON.CO.UK EGIFT VOUCHER (4.76%),Peoples Services Directorate,LAC - Education,F269,
http://opendatacommunities.org/id/london-borough-council/sutton,London Borough of Sutton,23/09/2020,1303786,10.00 , AMAZON.CO.UK 3Q1O88QI5,SPLIT - A FOR AMAZON - AMAZON.CO.UK EGIFT VOUCHER (7.69%),Peoples Services Directorate,LAC - Education,F269,
http://opendatacommunities.org/id/london-borough-council/sutton,London Borough of Sutton,23/09/2020,1303786,10.00 , AMAZON.CO.UK 3Q1O88QI5,SPLIT - A FOR AMAZON - AMAZON.CO.UK EGIFT VOUCHER (7.69%),Peoples Services Directorate,LAC - Education,F269,
http://opendatacommunities.org/id/london-borough-council/sutton,London Borough of Sutton,23/09/2020,1303786,10.00 , AMAZON.CO.UK 3Q1O88QI5,SPLIT - A FOR AMAZON - AMAZON.CO.UK EGIFT VOUCHER (7.69%),Peoples Services Directorate,LAC - Education,F269,
http://opendatacommunities.org/id/london-borough-council/sutton,London Borough of Sutton,23/09/2020,1303786,10.00 , AMAZON.CO.UK 3Q1O88QI5,SPLIT - A FOR AMAZON - AMAZON.CO.UK EGIFT VOUCHER (7.69%),Peoples Services Directorate,LAC - Education,F269,
http://opendatacommunities.org/id/london-borough-council/sutton,London Borough of Sutton,23/09/2020,1303786,10.00 , AMAZON.CO.UK 3Q1O88QI5,SPLIT - A FOR AMAZON - AMAZON.CO.UK EGIFT VOUCHER (7.69%),Peoples Services Directorate,LAC - Education,F269,
http://opendatacommunities.org/id/london-borough-council/sutton,London Borough of Sutton,23/09/2020,1303786,10.00 , AMAZON.CO.UK 3Q1O88QI5,SPLIT - A FOR AMAZON - AMAZON.CO.UK EGIFT VOUCHER (7.72%),Peoples Services Directorate,LAC - Education,F269,
http://opendatacommunities.org/id/london-borough-council/sutton,London Borough of Sutton,18/09/2020,1303786,66.00 , ROYAL MAIL GROUP LTD,POSTAGE FOR LAPTOP RETURN FROM SCHOOLS,Peoples Services Directorate,LAC - Education,F269,
http://opendatacommunities.org/id/london-borough-council/sutton,London Borough of Sutton,02/09/2020,1303786,50.00 , AMAZON.CO.UK 4Q13F3C75,SPLIT - AMAZON LOGO SQUID - AMAZON.CO.UK EGIFT VOUCHER (100%),Peoples Services Directorate,LAC - Education,F269,
http://opendatacommunities.org/id/london-borough-council/sutton,London Borough of Sutton,01/09/2020,1303786,157.50 , SP   MORPHE UK,MAKEUP FOR CLA 12 WEEK MAKEUP COURSE,Peoples Services Directorate,LAC - Education,F269,
http://opendatacommunities.org/id/london-borough-council/sutton,London Borough of Sutton,18/09/2020,1303786,66.00 , ROYAL MAIL GROUP LTD,POSTAGE FOR LAPTOP RETURN FROM SCHOOLS,Peoples Services Directorate,LAC - Education,F269,
http://opendatacommunities.org/id/london-borough-council/sutton,London Borough of Sutton,17/09/2020,1303786,11.00 , ROYAL MAIL GROUP LTD,POSTAGE FOR LAPTOP RETURN FROM SCHOOLS,Peoples Services Directorate,LAC - Education,F269,
http://opendatacommunities.org/id/london-borough-council/sutton,London Borough of Sutton,10/09/2020,1303786,38.58 , SP   MUSICRADIOCREATIV,MUSICRADIOCREATIVE PODCAST INTRO,Peoples Services Directorate,LAC - Education,F269,
http://opendatacommunities.org/id/london-borough-council/sutton,London Borough of Sutton,09/09/2020,1303786,21.76 , AMAZON.CO.UK AH6P20RA5,SPLIT - CACHE LEVEL 2 TECHNICAL AWARD IN HEALTH AND SOCIAL CARE (61.89%),Peoples Services Directorate,LAC - Education,F269,
http://opendatacommunities.org/id/london-borough-council/sutton,London Borough of Sutton,09/09/2020,1303786,4.34 , AMAZON.CO.UK AH6P20RA5,SPLIT - BBC BITESIZE EDEXCEL GCSE (9-1) MATHS FOUNDATION WORKBOOK (BBC BITESIZE GCSE 2017) (12.97%),Peoples Services Directorate,LAC - Education,F269,
http://opendatacommunities.org/id/london-borough-council/sutton,London Borough of Sutton,09/09/2020,1303786,5.77 , AMAZON.CO.UK AH6P20RA5,SPLIT - REVISE EDEXCEL GCSE (9-1) ENGLISH LANGUAGE REVISION GUIDE: WITH FREE ONLINE EDITION (REVISE EDEXCEL GCSE ENGLISH 2015) (17.24%),Peoples Services Directorate,LAC - Education,F269,
http://opendatacommunities.org/id/london-borough-council/sutton,London Borough of Sutton,09/09/2020,1303786,2.31 , AMAZON.CO.UK AH6P20RA5,BALANCING ENTRY AMOUNT (7.91%),Peoples Services Directorate,LAC - Education,F269,
http://opendatacommunities.org/id/london-borough-council/sutton,London Borough of Sutton,06/09/2020,1303786,10.99 , AMAZON.CO.UK O65WP2Q65,SPLIT - ENGLISH FOR EVERYONE COURSE BOOK LEVEL 3 INTERMEDIATE: A COMPLETE SELF-STUDY PROGRAMME (65.79%),Peoples Services Directorate,LAC - Education,F269,
http://opendatacommunities.org/id/london-borough-council/sutton,London Borough of Sutton,06/09/2020,1303786,5.26 , AMAZON.CO.UK O65WP2Q65,SPLIT - ENGLISH FOR EVERYONE PRACTICE BOOK LEVEL 3 INTERMEDIATE: A COMPLETE SELF-STUDY PROGRAMME (34.21%),Peoples Services Directorate,LAC - Education,F269,
http://opendatacommunities.org/id/london-borough-council/sutton,London Borough of Sutton,03/09/2020,1303786,60.00 , PAYPAL  AVIGUK,AVIGUK MEMBERSHIP FOR VIG THERAPY,Peoples Services Directorate,LAC - Education,F269,
http://opendatacommunities.org/id/london-borough-council/sutton,London Borough of Sutton,02/09/2020,1303786,50.00 , AMAZON.CO.UK IL80P3EV5,SPLIT - AMAZON LOGO SQUID - AMAZON.CO.UK EGIFT VOUCHER (100%),Peoples Services Directorate,LAC - Education,F269,
http://opendatacommunities.org/id/london-borough-council/sutton,London Borough of Sutton,02/09/2020,1303786,50.00 , AMAZON.CO.UK 1C2MH7ZZ5,SPLIT - AMAZON LOGO SQUID - AMAZON.CO.UK EGIFT VOUCHER (100%),Peoples Services Directorate,LAC - Education,F269,
http://opendatacommunities.org/id/london-borough-council/sutton,London Borough of Sutton,28/08/2020,1303786,9.46 , AMZNMKTPLACE,ANTIBAC SPRAY FOR REVIEW STATION,"Environment, Housing & Regeneration Directorate",Other-Materials,F115,
http://opendatacommunities.org/id/london-borough-council/sutton,London Borough of Sutton,23/09/2020,1303786,25.07 , FACEBK 52F6TXJAL2,SPLIT - NEIGHBOURHOOD FUNDS ADVERTISING (42.46%),"Environment, Housing & Regeneration Directorate",Advertising/Publicity (non Staff),F240,
http://opendatacommunities.org/id/london-borough-council/sutton,London Borough of Sutton,24/09/2020,1303786,19.45 , BC.BASECAMP 3 4831504,THE LIBRARIES CONSORTIUM ONLINE SHARING PLATFORM,Health and Wellbeing Directorate,Purchase of IT Equipment,F380,
http://opendatacommunities.org/id/london-borough-council/sutton,London Borough of Sutton,23/09/2020,1303786,707.21 , BC.BASECAMP 3 4831504,THE LIBRARIES CONSORTIUM ONLINE SHARING PLATFORM,Health and Wellbeing Directorate,Purchase of IT Equipment,F380,
http://opendatacommunities.org/id/london-borough-council/sutton,London Borough of Sutton,03/09/2020,1303786,8.32 , SPOTIFY UK,MUSIC FOR CEREMONIES,Resources Directorate,Subscriptions - General,F450,
http://opendatacommunities.org/id/london-borough-council/sutton,London Borough of Sutton,15/09/2020,1303786,6.44 , MAILCHIMP    MONTHLY,WEB HOSTING,Resources Directorate,Fees - Computer Software,F384,
http://opendatacommunities.org/id/london-borough-council/sutton,London Borough of Sutton,14/09/2020,1303786,234.08 , MAILCHIMP    MONTHLY,WEB HOSTING,Resources Directorate,Fees - Computer Software,F384,
http://opendatacommunities.org/id/london-borough-council/sutton,London Borough of Sutton,10/09/2020,1303786,75.00 , SOUNDCLOUD,SOUNDCLOUD SUBSCRIPTION RENEWAL FOR COMMITTEE SERVICES,Resources Directorate,Fees - Computer Software,F384,
http://opendatacommunities.org/id/london-borough-council/sutton,London Borough of Sutton,08/09/2020,1303786,"1,086.61 ", AIRBNB   HM8WRATT2J,1086.61 - F106 4114 9999 - AIRBNB FOR HANNAH.PNG,Resources Directorate,Personal Requisites,F106,
http://opendatacommunities.org/id/london-borough-council/sutton,London Borough of Sutton,20/09/2020,1303786,12.28 , AMZNMKTPLACE,"SPLIT - ANKER 2.4G WIRELESS VERTICAL ERGONOMIC OPTICAL MOUSE, 800/1200 /1600 DPI, 5 BUTTONS FOR LAPTOP, DESKTOP, PC, MACBOOK - BLACK (79.76%)",Resources Directorate,Personal Requisites,F106,
http://opendatacommunities.org/id/london-borough-council/sutton,London Borough of Sutton,20/09/2020,1303786,3.12 , AMZNMKTPLACE,BALANCING ENTRY AMOUNT (20.24%),Resources Directorate,Personal Requisites,F106,
http://opendatacommunities.org/id/london-borough-council/sutton,London Borough of Sutton,09/09/2020,1303786,79.00 , WWW.CII.CO.UK,PURCHASE OF COURSE/STUDY BOOKS,Resources Directorate,General Office Expenses,F235,
http://opendatacommunities.org/id/london-borough-council/sutton,London Borough of Sutton,17/09/2020,1303786,225.99 , CARTRIDGE SAVE,PRINTER CARTRIDGES FOR CLLR. ALLEN,Resources Directorate,Stationery,F220,
http://opendatacommunities.org/id/london-borough-council/sutton,London Borough of Sutton,29/08/2020,1303786,(1.80), GOOGLE  ADS9800860421,GOOGLE ADVERTISING,Resources Directorate,Corporate Publicity,F356,
http://opendatacommunities.org/id/london-borough-council/sutton,London Borough of Sutton,15/09/2020,1303786,23.40 , WWW.UKPOS.COM,LEAFLET HOLDERS FOR EVENT,"Environment, Housing & Regeneration Directorate",Other Equipment - Purchase,F015,
http://opendatacommunities.org/id/london-borough-council/sutton,London Borough of Sutton,24/09/2020,1303786,409.98 , ARGOS LTD,CL&G,Resources Directorate,Grants,F473,
http://opendatacommunities.org/id/london-borough-council/sutton,London Borough of Sutton,23/09/2020,1303786,449.98 , ARGOS LTD,CL&G,Resources Directorate,Grants,F473,
http://opendatacommunities.org/id/london-borough-council/sutton,London Borough of Sutton,23/09/2020,1303786,199.99 , ARGOS LTD,CL&G,Resources Directorate,Grants,F473,
http://opendatacommunities.org/id/london-borough-council/sutton,London Borough of Sutton,23/09/2020,1303786,199.99 , ARGOS LTD,CL&G,Resources Directorate,Grants,F473,
http://opendatacommunities.org/id/london-borough-council/sutton,London Borough of Sutton,23/09/2020,1303786,339.98 , ARGOS LTD,CL&G,Resources Directorate,Grants,F473,
http://opendatacommunities.org/id/london-borough-council/sutton,London Borough of Sutton,22/09/2020,1303786,40.26 , PAYPAL  GSUITEADDON,CL&G,Resources Directorate,Grants,F473,
http://opendatacommunities.org/id/london-borough-council/sutton,London Borough of Sutton,22/09/2020,1303786,395.94 , ARGOS LTD,CL&G,Resources Directorate,Grants,F473,
http://opendatacommunities.org/id/london-borough-council/sutton,London Borough of Sutton,22/09/2020,1303786,255.95 , ARGOS LTD,CL&G,Resources Directorate,Grants,F473,
http://opendatacommunities.org/id/london-borough-council/sutton,London Borough of Sutton,21/09/2020,1303786,224.99 , ARGOS LTD,CL&G,Resources Directorate,Grants,F473,
http://opendatacommunities.org/id/london-borough-council/sutton,London Borough of Sutton,18/09/2020,1303786,122.95 , ARGOS LTD,CL&G,Resources Directorate,Grants,F473,
http://opendatacommunities.org/id/london-borough-council/sutton,London Borough of Sutton,18/09/2020,1303786,409.98 , ARGOS LTD,CL&G,Resources Directorate,Grants,F473,
http://opendatacommunities.org/id/london-borough-council/sutton,London Borough of Sutton,18/09/2020,1303786,179.99 , ARGOS LTD,CL&G,Resources Directorate,Grants,F473,
http://opendatacommunities.org/id/london-borough-council/sutton,London Borough of Sutton,16/09/2020,1303786,259.99 , ARGOS LTD,CL&G,Resources Directorate,Grants,F473,
http://opendatacommunities.org/id/london-borough-council/sutton,London Borough of Sutton,16/09/2020,1303786,149.98 , ARGOS LTD,CL&G,Resources Directorate,Grants,F473,
http://opendatacommunities.org/id/london-borough-council/sutton,London Borough of Sutton,16/09/2020,1303786,279.99 , ARGOS LTD,CL&G,Resources Directorate,Grants,F473,
http://opendatacommunities.org/id/london-borough-council/sutton,London Borough of Sutton,16/09/2020,1303786,112.95 , ARGOS LTD,CL&G,Resources Directorate,Grants,F473,
http://opendatacommunities.org/id/london-borough-council/sutton,London Borough of Sutton,15/09/2020,1303786,40.26 , PAYPAL  GSUITEADDON,CL&G,Resources Directorate,Grants,F473,
http://opendatacommunities.org/id/london-borough-council/sutton,London Borough of Sutton,14/09/2020,1303786,145.95 , ARGOS LTD,CL&G,Resources Directorate,Grants,F473,
http://opendatacommunities.org/id/london-borough-council/sutton,London Borough of Sutton,26/08/2020,1303786,495.93 , ARGOS LTD,CL&G,Resources Directorate,Grants,F473,
http://opendatacommunities.org/id/london-borough-council/sutton,London Borough of Sutton,19/09/2020,1303786,"3,000.00 ", CS MORRISONS GIFT CARD,PURCHASE OF MORRISONS VOUCHERS FOR USE IN CL&G AWARDS,Resources Directorate,Grants,F473,
http://opendatacommunities.org/id/london-borough-council/sutton,London Borough of Sutton,08/09/2020,1303786,162.95 , ARGOS LTD,PURCHASE OF WHITE GOODS FOR CRISIS LOAN AND GRANT SCHEME,Resources Directorate,Grants,F473,
http://opendatacommunities.org/id/london-borough-council/sutton,London Borough of Sutton,08/09/2020,1303786,149.99 , ARGOS LTD,PURCHASE OF WHITE GOODS FOR CRISIS LOAN AND GRANT SCHEME,Resources Directorate,Grants,F473,
http://opendatacommunities.org/id/london-borough-council/sutton,London Borough of Sutton,08/09/2020,1303786,485.94 , ARGOS LTD,PURCHASE OF WHITE GOODS FOR CRISIS LOAN AND GRANT SCHEME,Resources Directorate,Grants,F473,
http://opendatacommunities.org/id/london-borough-council/sutton,London Borough of Sutton,08/09/2020,1303786,(162.95), ARGOS LTD,PURCHASE OF WHITE GOODS FOR CRISIS LOAN AND GRANT SCHEME,Resources Directorate,Grants,F473,
http://opendatacommunities.org/id/london-borough-council/sutton,London Borough of Sutton,08/09/2020,1303786,162.95 , ARGOS LTD,PURCHASE OF WHITE GOODS FOR CRISIS LOAN AND GRANT SCHEME,Resources Directorate,Grants,F473,
http://opendatacommunities.org/id/london-borough-council/sutton,London Borough of Sutton,04/09/2020,1303786,99.99 , ARGOS LTD,PURCHASE OF WHITE GOODS FOR CRISIS LOAN AND GRANT SCHEME,Resources Directorate,Grants,F473,
http://opendatacommunities.org/id/london-borough-council/sutton,London Borough of Sutton,04/09/2020,1303786,189.99 , ARGOS LTD,PURCHASE OF WHITE GOODS FOR CRISIS LOAN AND GRANT SCHEME,Resources Directorate,Grants,F473,
http://opendatacommunities.org/id/london-borough-council/sutton,London Borough of Sutton,02/09/2020,1303786,221.95 , ARGOS LTD,PURCHASE OF WHITE GOODS FOR CRISIS LOAN AND GRANT SCHEME,Resources Directorate,Grants,F473,
http://opendatacommunities.org/id/london-borough-council/sutton,London Borough of Sutton,02/09/2020,1303786,275.95 , ARGOS LTD,PURCHASE OF WHITE GOODS FOR CRISIS LOAN AND GRANT SCHEME,Resources Directorate,Grants,F473,
http://opendatacommunities.org/id/london-borough-council/sutton,London Borough of Sutton,02/09/2020,1303786,259.99 , ARGOS LTD,PURCHASE OF WHITE GOODS FOR CRISIS LOAN AND GRANT SCHEME,Resources Directorate,Grants,F473,
http://opendatacommunities.org/id/london-borough-council/sutton,London Borough of Sutton,19/09/2020,1303786,"3,000.00 ", CS MORRISONS GIFT CARD,PURCHASE OF MORRISONS VOUCHERS FOR USE IN CL&G AWARDS,Resources Directorate,Grants,F473,
http://opendatacommunities.org/id/london-borough-council/sutton,London Borough of Sutton,19/09/2020,1303786,"3,000.00 ", CS MORRISONS GIFT CARD,PURCHASE OF MORRISONS VOUCHERS FOR USE IN CL&G AWARDS,Resources Directorate,Grants,F473,
http://opendatacommunities.org/id/london-borough-council/sutton,London Borough of Sutton,22/09/2020,1303786,385.94 , ARGOS LTD,PURCHASE OF SOFTWARE FOR DHPS,Resources Directorate,Fees - Computer Software,F384,
http://opendatacommunities.org/id/london-borough-council/sutton,London Borough of Sutton,15/09/2020,1303786,305.95 , ARGOS LTD,PURCHASE OF SOFTWARE FOR DHPS,Resources Directorate,Fees - Computer Software,F384,
http://opendatacommunities.org/id/london-borough-council/sutton,London Borough of Sutton,10/09/2020,1303786,140.83 , AMZNMKTPLACE,HEIGHT ADJUSTABLE MOBILE STANDING DESK FOR HOME WORKING,Resources Directorate,Furniture - Purchase,F080,
http://opendatacommunities.org/id/london-borough-council/sutton,London Borough of Sutton,03/09/2020,1303786,0.65 , AWS EMEA,,Resources Directorate,Fees - Other,F299,
http://opendatacommunities.org/id/london-borough-council/sutton,London Borough of Sutton,03/09/2020,1303786,220.81 , CURRYS ONLINE,264.97 F106 6402 9999 CURRYS,Peoples Services Directorate,Personal Requisites,F106,
http://opendatacommunities.org/id/london-borough-council/sutton,London Borough of Sutton,20/08/2020,1303786,(191.65), CURRYS ONLINE,229.98 H301 6402 9999 REFUND CURRY,Peoples Services Directorate,Client Care/Assistance,H301,
http://opendatacommunities.org/id/london-borough-council/sutton,London Borough of Sutton,09/09/2020,1303786,79.03 , STORAGEMART UK A-3ADEC,94.84 H301 6403 9999 STORAGEMART,Peoples Services Directorate,Client Care/Assistance,H301,
http://opendatacommunities.org/id/london-borough-council/sutton,London Borough of Sutton,25/09/2020,1303786,199.25 , LONDON CRYSTAL PALACE,239.10 - H202 6404 9999 - QUEEN'S HOTEL CRYSTAL PALACE.PNG,Peoples Services Directorate,Accommodation - Bed and Breakfast,H202,
http://opendatacommunities.org/id/london-borough-council/sutton,London Borough of Sutton,17/09/2020,1303786,233.75 , HOTEL ON BOOKING.COM,280.50 - H202 6404 9999 - BOOKING.COM BEST WESTERN LONDON QUEENS CRYSTAL PALACE,Peoples Services Directorate,Accommodation - Bed and Breakfast,H202,
http://opendatacommunities.org/id/london-borough-council/sutton,London Borough of Sutton,08/09/2020,1303786,650.00 , LONDON CRYSTAL PALACE,780.00 H202 6404 9999 LONDON CRYSTAL PALACE HOTEL,Peoples Services Directorate,Accommodation - Bed and Breakfast,H202,
http://opendatacommunities.org/id/london-borough-council/sutton,London Borough of Sutton,03/09/2020,1303786,75.00 , WALLINGTON CARS AND CO,90.00 H212 6404 9999 WALLINGTON CARS,Peoples Services Directorate,C.C.A Travel & Subsistance,H212,
http://opendatacommunities.org/id/london-borough-council/sutton,London Borough of Sutton,30/08/2020,1303786,16.67 , OYSTER AUTO TOPUP,20.00 - A530 6423 9999 - 30.08.2020.PDF,Peoples Services Directorate,Travelling and Subsistence Allowances,A530,
http://opendatacommunities.org/id/london-borough-council/sutton,London Borough of Sutton,02/09/2020,1303786,"5,376.67 ", HOLIDAY INNS,"6,452.00 A512 6452 6619 HOLIDAY INN",Peoples Services Directorate,Hotel Accomodation,A512,
http://opendatacommunities.org/id/london-borough-council/sutton,London Borough of Sutton,02/09/2020,1303786,63.50 , OFFICEPACWATCHMX,PPE SUPPLY,Peoples Services Directorate,Miscellaneous Costs,G499,
http://opendatacommunities.org/id/london-borough-council/sutton,London Borough of Sutton,09/09/2020,1303786,11.00 , LBSUTTON MOTO,DEATH CERTIFICATE,Peoples Services Directorate,Burials/Cremations,H303,
http://opendatacommunities.org/id/london-borough-council/sutton,London Borough of Sutton,23/09/2020,1303786,33.98 , FACEBK 52F6TXJAL2,SPLIT - TEST AND TRACE ADVERTISING (57.54%),Health and Wellbeing Directorate,Advertising/Publicity (non Staff),F240,
http://opendatacommunities.org/id/london-borough-council/sutton,London Borough of Sutton,14/09/2020,1303786,58.95 , FACEBK AHNQKWSAL2,SPLIT - SOCIAL MEDIA ADVERTISING (19.59%),Peoples Services Directorate,Corporate Publicity,F356,
